{"text_format":"1","workbook":"xlsx","n_sheets":2,"sheets":["Questionnaire","Résultats chronométrés"],"not_rendered":{"charts":0,"images":2,"macros":1,"external_links":0,"defined_names":15,"comments":0,"pivot_tables":0},"unopened":[],"bounds":{"document_bytes":16777216,"sheet_cells":100000,"rows_first":2000,"rows_last":500,"rows_between":2000,"halvings":0,"cell_chars":16384,"cell_head_chars":4096},"cells_cut":0,"cells_raw":0,"read":"whole","date_system":"1900"}

{"sheet":"Questionnaire","index":0,"n_rows":173,"n_cols":10,"rows_kept":173,"cut":false,"hidden":false,"merged":[]}
[]
[null,null,null,null,null,null,null,null,null,"cacher les formules d'une case : http://blog.docmemo.com/"]
[]
[]
[null,null,null,"Questionnaire sur le Jura"]
[]
[null,null,null,"En répondant correctement à la première question, vous aurez automatiquement accès "]
[null,null,null,"à la question suivante, et ceci jusqu'à la fin du questionnaire."]
[]
[null,null,null,"Attention, vous devez donner votre réponse dans les cases oranges :"]
[null,null,null,"* en respectant les règles orthographiques"]
[null,null,null,"* les majuscules ne sont pas obligatoires"]
[null,null,null,"* les déterminants ne sont pas nécessaires"]
[]
[null,null,null,"Ecrivez le nom de votre équipe, et GO … Bon test !"]
[]
[null,null,null,"Prénom(s) :"]
[]
[]
[null,null,null,"1)","Quel est le nom de la race de chevaux jurassiens (seule race suisse) ?"]
[]
[null,null,null,"Réponse ",null,null,{"$f":"IF((E22=I22),\"correct\",\"faux\")","v":"faux"},null,"franches-montagnes"]
[null,null,null,null,null,null,null,null,"Quel est le nom de la race de chevaux jurassiens (seule race suisse) ?"]
[]
[null,null,null,"2)",{"$f":"IF(G22=\"correct\",OFFSET(E25,3,4,1,1),\"\")","v":""}]
[null,null,null,null,{"$f":"IF(H22,OFFSET($J$5,3*VALUE(LEFT(D26,1))-3,0,1,1),\"\")","v":""}]
[null,null,null,"Réponse ",null,null,{"$f":"IF((E27=I27),\"correct\",\"faux\")","v":"faux"},null,"Chaux-de-fonds"]
[null,null,null,null,null,null,null,null,"En partant de Glovelier avec le CJ, où se situe le terminus ?"]
[]
[null,null,null,"3) ",{"$f":"IF(G27=\"correct\",OFFSET(E30,3,4,1,1),\"\")","v":""}]
[]
[null,null,null,"Réponse ",null,null,{"$f":"IF((E32=I32),\"correct\",\"faux\")","v":"faux"},null,"hockey"]
[null,null,null,null,null,null,null,null,"Quel est le sport fétiche de la ville de Porrentruy et de sa région ?"]
[]
[null,null,null,"4)",{"$f":"IF(G32=\"correct\",OFFSET(E35,3,4,1,1),\"\")","v":""}]
[null,null,null,null,{"$f":"IF(H32,OFFSET($J$5,3*VALUE(LEFT(D36,1))-3,0,1,1),\"\")","v":""}]
[null,null,null,"Réponse ",null,null,{"$f":"IF((E37=I37),\"correct\",\"faux\")","v":"faux"},null,"ajoie"]
[null,null,null,null,null,null,null,null,"Dans quel district se situe la nouvelle commune appelée « Basse Allaine » ?"]
[]
[null,null,null,"5)",{"$f":"IF(G37=\"correct\",OFFSET(E40,3,4,1,1),\"\")","v":""}]
[]
[null,null,null,"Réponse ",null,null,{"$f":"IF((E42=I42),\"correct\",\"faux\")","v":"faux"},null,"bressaucourt"]
[null,null,null,null,null,null,null,null,"Quel est le nom de ce village d'Ajoie dont les lettres sont mélangées ici : \"turasucobres\""]
[]
[null,null,null,"6)",{"$f":"IF(G42=\"correct\",OFFSET(E45,3,4,1,1),\"\")","v":""}]
[null,null,null,null,{"$f":"IF(H42,OFFSET($J$5,3*VALUE(LEFT(D46,1))-3,0,1,1),\"\")","v":""}]
[null,null,null,"Réponse ",null,null,{"$f":"IF((E47=I47),\"correct\",\"faux\")","v":"faux"},null,"scheulte"]
[null,null,null,null,null,null,null,null,"Quel est le cours d'eau qui coule dans le Val Terbi et qui se jète dans la Birse ?"]
[]
[null,null,null,"7) ",{"$f":"IF(G47=\"correct\",OFFSET(E50,3,4,1,1),\"\")","v":""}]
[]
[null,null,null,"Réponse ",null,null,{"$f":"IF((E52=I52),\"correct\",\"faux\")","v":"faux"},null,"chant du gros"]
[null,null,null,null,null,null,null,null,"Comment se nomme le festival de musique qui a lieu en automne au Noirmont ?"]
[]
[null,null,null,"8)",{"$f":"IF(G52=\"correct\",OFFSET(E55,3,4,1,1),\"\")","v":""}]
[null,null,null,null,{"$f":"IF(H52,OFFSET($J$5,3*VALUE(LEFT(D56,1))-3,0,1,1),\"\")","v":""}]
[null,null,null,"Réponse ",null,null,{"$f":"IF((E57=I57),\"correct\",\"faux\")","v":"faux"},null,"damphreux"]
[null,null,null,null,null,null,null,null,"Quel est le village qui se trouve entre Lugnez et Coeuve ?"]
[]
[null,null,null,"9)",{"$f":"IF(G57=\"correct\",OFFSET(E60,3,4,1,1),\"\")","v":""}]
[]
[null,null,null,"Réponse ",null,null,{"$f":"IF((E62=I62),\"correct\",\"faux\")","v":"faux"},null,"sorne"]
[null,null,null,null,null,null,null,null,"Comment se nomme la rivière dans laquelle se jète le Folpotat à Undervelier ?"]
[]
[null,null,null,"10) ",{"$f":"IF(G62=\"correct\",OFFSET(E65,3,4,1,1),\"\")","v":""}]
[]
[null,null,null,"Réponse ",null,null,{"$f":"IF((E67=I67),\"correct\",\"faux\")","v":"faux"},null,"bidets"]
[null,null,null,null,null,null,null,null,"Quel est le sobriquet des habitants d'Undervelier ?"]
[]
[null,null,null,"11)",{"$f":"IF(G67=\"correct\",OFFSET(E70,3,4,1,1),\"\")","v":""}]
[null,null,null,null,{"$f":"IF(H67,OFFSET($J$5,3*VALUE(LEFT(D71,1))-3,0,1,1),\"\")","v":""}]
[null,null,null,"Réponse ",null,null,{"$f":"IF((E72=I72),\"correct\",\"faux\")","v":"faux"},null,"rebeuvelier"]
[null,null,null,null,null,null,null,null,"Dans quel village se trouve le « Parc Aventure » ?"]
[]
[null,null,null,"12)",{"$f":"IF(G72=\"correct\",OFFSET(E75,3,4,1,1),\"\")","v":""}]
[]
[null,null,null,"Réponse ",null,null,{"$f":"IF((E77=I77),\"correct\",\"faux\")","v":"faux"},null,"Forges"]
[null,null,null,null,null,null,null,null,"Comment s'appelle le lieu dans lequel on extrayait autrefois du minerais près d'Undervelier ?"]
[]
[null,null,null,"13)",{"$f":"IF(G77=\"correct\",OFFSET(E80,3,4,1,1),\"\")","v":""}]
[null,null,null,null,{"$f":"IF(H77,OFFSET($J$5,3*VALUE(LEFT(D81,1))-3,0,1,1),\"\")","v":""}]
[null,null,null,"Réponse ",null,null,{"$f":"IF((E82=I82),\"correct\",\"faux\")","v":"faux"},null,7]
[null,null,null,null,null,null,null,null,"Combien de villages forment la nouvelle grande commune appelée « Clos-du-Doubs"]
[null,null,null,null,null,null,null,null,"St-Ursanne, Montenol, Epauvillers, Epiquerez, Seleute, Ocourt, Montmelon"]
[null,null,null,"14)",{"$f":"IF(G82=\"correct\",OFFSET(E85,3,4,1,1),\"\")","v":""}]
[]
[null,null,null,"Réponse ",null,null,{"$f":"IF((E87=I87),\"correct\",\"faux\")","v":"faux"},null,"vfm"]
[null,null,null,null,null,null,null,null,"Quelles sont les initiales du Volleyball Club des Franches-Mongnes ?"]
[]
[null,null,null,"15)",{"$f":"IF(G87=\"correct\",OFFSET(E90,3,4,1,1),\"\")","v":""}]
[null,null,null,null,{"$f":"IF(H87,OFFSET($J$5,3*VALUE(LEFT(D91,1))-3,0,1,1),\"\")","v":""}]
[null,null,null,"Réponse ",null,null,{"$f":"IF((E92=I92),\"correct\",\"faux\")","v":"faux"},null,"creugenat"]
[null,null,null,null,null,null,null,null,"Comment s'appelle la rivière qui coule à Courtedoux et qui signifie \"Creu des Sorcières\" ?"]
[]
[null,null,null,"16)",{"$f":"IF(G92=\"correct\",OFFSET(E95,3,4,1,1),\"\")","v":""}]
[]
[null,null,null,"Réponse ",null,null,{"$f":"IF((E97=I97),\"correct\",\"faux\")","v":"faux"},null,"A 16"]
[null,null,null,null,null,null,null,null,"Comment se nomme l'autoroute qui traverse le Canton du Jura ? (une lettre et un nombre)"]
[]
[null,null,null,"17) ",{"$f":"IF(G97=\"correct\",OFFSET(E100,3,4,1,1),\"\")","v":""}]
[]
[null,null,null,"Réponse ",null,null,{"$f":"IF((E102=I102),\"correct\",\"faux\")","v":"faux"},null,5]
[null,null,null,null,null,null,null,null,"Combien le Canton du Jura compte-il de ministres ?"]
[]
[null,null,null,"18)",{"$f":"IF(G102=\"correct\",OFFSET(E105,3,4,1,1),\"\")","v":""}]
[null,null,null,null,{"$f":"IF(H102,OFFSET($J$5,3*VALUE(LEFT(D106,1))-3,0,1,1),\"\")","v":""}]
[null,null,null,"Réponse ",null,null,{"$f":"IF((E107=I107),\"correct\",\"faux\")","v":"faux"},null,"vermes"]
[null,null,null,null,null,null,null,null,"Dans quelle commune se situe le château de Raimontpierre ?"]
[]
[null,null,null,"19)",{"$f":"IF(G107=\"correct\",OFFSET(E110,3,4,1,1),\"\")","v":""}]
[]
[null,null,null,"Réponse ",null,null,{"$f":"IF((E112=I112),\"correct\",\"faux\")","v":"faux"},null,"sainte-colombe"]
[null,null,null,null,null,null,null,null,"Comment se nomme la grotte qui se situe à l'entrée du village d'Undervelier ?"]
[]
[null,null,null,"20)",{"$f":"IF(G112=\"correct\",OFFSET(E115,3,4,1,1),\"\")","v":""}]
[null,null,null,null,{"$f":"IF(H112,OFFSET($J$5,3*VALUE(LEFT(D116,1))-3,0,1,1),\"\")","v":""}]
[null,null,null,"Réponse ",null,null,{"$f":"IF((E117=I117),\"correct\",\"faux\")","v":"faux"},null,"mettembert"]
[null,null,null,null,null,null,null,null,"Quel est le village qui a changé la dernière lettre de son nom en 1984 ? (a passé de G à T)"]
[]
[null,null,null,"21) ",{"$f":"IF(G117=\"correct\",OFFSET(E120,3,4,1,1),\"\")","v":""}]
[]
[null,null,null,"Réponse ",null,null,{"$f":"IF((E122=I122),\"correct\",\"faux\")","v":"faux"},null,"birse"]
[null,null,null,null,null,null,null,null,"Dans quelle rivière se jète la Sorne ?"]
[]
[null,null,null,"22)",{"$f":"IF(G122=\"correct\",OFFSET(E125,3,4,1,1),\"\")","v":""}]
[null,null,null,null,{"$f":"IF(H122,OFFSET($J$5,3*VALUE(LEFT(D126,1))-3,0,1,1),\"\")","v":""}]
[null,null,null,"Réponse ",null,null,{"$f":"IF((E127=I127),\"correct\",\"faux\")","v":"faux"},null,"gruère"]
[null,null,null,null,null,null,null,null,"Quel est le nom de l'étang franc-montagnard dont le fond est noir en raison de la tourbe ?"]
[]
[null,null,null,"23)",{"$f":"IF(G127=\"correct\",OFFSET(E130,3,4,1,1),\"\")","v":""}]
[]
[null,null,null,"Réponse ",null,null,{"$f":"IF((E132=I132),\"correct\",\"faux\")","v":"faux"},null,"saint-martin"]
[null,null,null,null,null,null,null,null,"Comment se nomme la fête gastronomique qui a lieu à mi-novembre en Ajoie ?"]
[]
[null,null,null,"24)",{"$f":"IF(G132=\"correct\",OFFSET(E135,3,4,1,1),\"\")","v":""}]
[null,null,null,null,{"$f":"IF(H132,OFFSET($J$5,3*VALUE(LEFT(D136,1))-3,0,1,1),\"\")","v":""}]
[null,null,null,"Réponse ",null,null,{"$f":"IF((E137=I137),\"correct\",\"faux\")","v":"faux"},null,"roquets"]
[null,null,null,null,null,null,null,null,"Quel est le sobriquet des habitants de Soulce ?"]
[]
[null,null,null,"25)",{"$f":"IF(G137=\"correct\",OFFSET(E140,3,4,1,1),\"\")","v":""}]
[]
[null,null,null,"Réponse ",null,null,{"$f":"IF((E142=I142),\"correct\",\"faux\")","v":"faux"},null,"courtedoux"]
[null,null,null,null,null,null,null,null,"Dans quel village les archéologues ont-ils découvert des traces de dinosaures de grande importance ?"]
[]
[null,null,null,"26)",{"$f":"IF(G142=\"correct\",OFFSET(E145,3,4,1,1),\"\")","v":""}]
[null,null,null,null,{"$f":"IF(H142,OFFSET($J$5,3*VALUE(LEFT(D146,1))-3,0,1,1),\"\")","v":""}]
[null,null,null,"Réponse ",null,null,{"$f":"IF((E147=I147),\"correct\",\"faux\")","v":"faux"},null,"elisabeth baume-schneider"]
[null,null,null,null,null,null,null,null,"Comment se nomme la ministre de l'éducation ? (prénom et nom)"]
[]
[null,null,null,"27)",{"$f":"IF(G147=\"correct\",OFFSET(E150,3,4,1,1),\"\")","v":""}]
[]
[null,null,null,"Réponse ",null,null,{"$f":"IF((E152=I152),\"correct\",\"faux\")","v":"faux"},null,"delémont"]
[null,null,null,null,null,null,null,null,"Dans quelle localité se situe le château du Vorbourg ?"]
[]
[null,null,null,"28)",{"$f":"IF(G152=\"correct\",OFFSET(E155,3,4,1,1),\"\")","v":""}]
[]
[null,null,null,"Réponse ",null,null,{"$f":"IF((E157=I157),\"correct\",\"faux\")","v":"faux"},null,"clos des cantons"]
[null,null,null,null,null,null,null,null,"Comment se nomme la vigne qui se trouve à Buix ?"]
[]
[null,null,null,"29)",{"$f":"IF(G157=\"correct\",OFFSET(E160,3,4,1,1),\"\")","v":""}]
[null,null,null,null,{"$f":"IF(H157,OFFSET($J$5,3*VALUE(LEFT(D161,1))-3,0,1,1),\"\")","v":""}]
[null,null,null,"Réponse ",null,null,{"$f":"IF((E162=I162),\"correct\",\"faux\")","v":"faux"},null,4]
[null,null,null,null,null,null,null,null,"Combien de bandes rouges y a-t-il sur drapeau jurassien ?"]
[]
[null,null,null,"30)",{"$f":"IF(G162=\"correct\",OFFSET(E165,3,4,1,1),\"\")","v":""}]
[]
[null,null,null,"Réponse ",null,null,{"$f":"IF((E167=I167),\"correct\",\"faux\")","v":"faux"},null,"tabeillon"]
[null,null,null,null,null,null,null,null,"Comment se nomme la rivière qui coule à Glovelier ?"]
[]
[null,null,null,null,{"$f":"IF(G167=\"correct\",OFFSET(E170,3,4,1,1),\"\")","v":""}]
[]
[]
[null,null,null,null,null,null,null,null,"Félicitations, vous venez de terminer ce questionnaire avec succès !!!!"]

{"sheet":"Résultats chronométrés","index":1,"n_rows":5,"n_cols":8,"rows_kept":5,"cut":false,"hidden":false,"merged":[]}
[null,null,null,"debut à :",39446.757615740738,40766.68359375,40778.16015625,40766.68359375]
["temps en sec","Prénom"]
[]
[11.4765625]
[4.39453125]